Workbook

Sheet FICHA_SUPPLEMENTADO
H3: Automatico! No modificar!
H4: DATOS DE FABRICACION | M4: =TODAY() -> 2018-07-24
H5: =IF(B6<>"",B6,"") ->  | M5: =NomUtilisateur() -> serine_a
H7: =A7&" :" -> : | I7: =IF(B8<>"",INDEX(Tb_mezcla2!A1:M1,MIN(IF(Tb_mezcla2!B3:M7=I13,COLUMN(Tb_mezcla2!B3:M7)))),"") ->  | K7: =IF(A10<>"",A10&" :","") ->  | L7: =B10 -> 0
K8: =IF(A14<>"",A14&" :","") ->  | L8: =IF(B14<>"",B14,"") -> 
H9: =C7&" :" -> : | I9: =IF(B8<>"",INDEX(Tb_mezcla2!A1:A7,MIN(IF(Tb_mezcla2!B3:M7=I13,ROW(Tb_mezcla2!B3:M7)))),"") ->  | K9: =IF(A15<>"",A15&" :","") ->  | L9: =IF(A16<>"",A16,"") -> 
K10: =IF(A17<>"",A17&" :","") ->  | L10: =IF(B17<>"",B17,"") -> 
H11: Cantidad real : | I11: =IF(B8<>"",B8,"") ->  | K11: =IF(A18<>"",A18&" :","") ->  | L11: =IF(B18<>"",B18,"") -> 
K12: =IF(A19<>"",A19&" :","") ->  | L12: =IF(B19<>"",B19,"") -> 
H13: Cantidad a fabricar : | I13: =MIN(IF(ABS(Tb_mezcla2!B3:M7-I11)=MIN(ABS(Tb_mezcla2!B3:M7-I11)),Tb_mezcla2!B3:M7)) ->  | K13: N°Variante : | L13: =IF(A3<>"",A3,"") -> 
G15: PC | H15: =IF(A30<>"",A30,"") ->  | L15: Kg/Mezcla
G16: =IF(J16<>"",J16*3,"") ->  | L16: =IF(G16<>"",G16*$I$9,"") -> 
H19: =IF(A34<>"",A34,"") -> 
H21: =IF(A36<>"",A36,"") ->  | I21: =IF(B36<>"",B36,"") -> 
G23: Etiqueta :
G25: Commentarios : | H25: =IF(A2<>"",A2,"") -> 
M27: N° Pagina
M28: 1

Sheet Produccion
N1: =NomUtilisateur() -> serine_a | Q1: Fecha Principio : | R1: 2018-07-23 | S1: Hora de Comienzo : | T1: 09:00:00 | U1: GANTT DE PRODUCCION
A2: | CONTROL | | E2: | DESCRITPION PRODUCTO | | G2: | PRODUCCION | | K2: | Primero | | M2: | Segundo | | O2: | Tercero | | Q2: Fecha fin : | R2: =R1+1 -> 2018-07-24 | S2: Escala temporal : | T2: 00:15:00 | Y2: =IF($T$1+$R$1>=$R$2,"",$T$1+$R$1) -> 2018-07-23T09:00:00 | Z2: =IF(Y2<>"",IF(Y2+$T$2>=$R$2+$T$1,"",Y2+$T$2),"") -> 2018-07-23T09:15:00 | AA2: 2018-07-23T09:30:00 | AB2: 2018-07-23T09:45:00 | AC2: 2018-07-23T10:00:00 | AD2: 2018-07-23T10:15:00 | AE2: 2018-07-23T10:30:00 | AF2: 2018-07-23T10:45:00 | AG2: 2018-07-23T11:00:00 | AH2: 2018-07-23T11:15:00 | AI2: 2018-07-23T11:30:00 | AJ2: 2018-07-23T11:45:00 | AK2: 2018-07-23T12:00:00 | AL2: 2018-07-23T12:15:00 | AM2: 2018-07-23T12:30:00 | AN2: 2018-07-23T12:45:00 | AO2: 2018-07-23T13:00:00 | AP2: 2018-07-23T13:15:00 | AQ2: 2018-07-23T13:30:00 | AR2: 2018-07-23T13:45:00 | AS2: 2018-07-23T14:00:00 | AT2: 2018-07-23T14:15:00 | AU2: 2018-07-23T14:30:00 | AV2: 2018-07-23T14:45:00 | AW2: 2018-07-23T15:00:00 | AX2: 2018-07-23T15:15:00 | AY2: 2018-07-23T15:30:00 | AZ2: 2018-07-23T15:45:00 | BA2: 2018-07-23T16:00:00 | BB2: 2018-07-23T16:15:00 | BC2: 2018-07-23T16:30:00 | BD2: 2018-07-23T16:45:00 | BE2: 2018-07-23T17:00:00 | BF2: =IF(BE2<>"",IF(BE2+$T$2>=$R$2+$T$1,"",BE2+$T$2),"") -> 2018-07-23T17:15:00 | BG2: 2018-07-23T17:30:00 | BH2: 2018-07-23T17:45:00 | BI2: 2018-07-23T18:00:00 | BJ2: 2018-07-23T18:15:00 | BK2: 2018-07-23T18:30:00 | BL2: 2018-07-23T18:45:00 | BM2: 2018-07-23T19:00:00 | BN2: 2018-07-23T19:15:00 | BO2: 2018-07-23T19:30:00 | BP2: 2018-07-23T19:45:00 | BQ2: 2018-07-23T20:00:00 | BR2: 2018-07-23T20:15:00 | BS2: 2018-07-23T20:30:00 | BT2: 2018-07-23T20:45:00 | BU2: 2018-07-23T21:00:00 | BV2: 2018-07-23T21:15:00 | BW2: 2018-07-23T21:30:00 | BX2: 2018-07-23T21:45:00 | BY2: 2018-07-23T22:00:00 | BZ2: 2018-07-23T22:15:00 | CA2: 2018-07-23T22:30:00 | CB2: 2018-07-23T22:45:00 | CC2: 2018-07-23T23:00:00 | CD2: 2018-07-23T23:15:00 | CE2: 2018-07-23T23:30:00 | CF2: 2018-07-23T23:45:00 | CG2: 2018-07-24 | CH2: 2018-07-24T00:15:00 | CI2: 2018-07-24T00:30:00 | CJ2: 2018-07-24T00:45:00 | CK2: 2018-07-24T01:00:00 | CL2: =IF(CK2<>"",IF(CK2+$T$2>=$R$2+$T$1,"",CK2+$T$2),"") -> 2018-07-24T01:15:00 | CM2: 2018-07-24T01:30:00 | CN2: 2018-07-24T01:45:00 | CO2: 2018-07-24T02:00:00 | CP2: 2018-07-24T02:15:00 | CQ2: 2018-07-24T02:30:00 | CR2: 2018-07-24T02:45:00 | CS2: 2018-07-24T03:00:00 | CT2: 2018-07-24T03:15:00 | CU2: 2018-07-24T03:30:00 | CV2: 2018-07-24T03:45:00 | CW2: 2018-07-24T04:00:00 | CX2: 2018-07-24T04:15:00 | CY2: 2018-07-24T04:30:00 | CZ2: 2018-07-24T04:45:00 | DA2: 2018-07-24T05:00:00 | DB2: 2018-07-24T05:15:00 | DC2: 2018-07-24T05:30:00 | DD2: 2018-07-24T05:45:00 | DE2: 2018-07-24T06:00:00 | DF2: 2018-07-24T06:15:00 | DG2: 2018-07-24T06:30:00 | DH2: 2018-07-24T06:45:00 | DI2: 2018-07-24T07:00:00 | DJ2: 2018-07-24T07:15:00 | DK2: 2018-07-24T07:30:00 | DL2: 2018-07-24T07:45:00 | DM2: 2018-07-24T08:00:00 | DN2: 2018-07-24T08:15:00 | DO2: 2018-07-24T08:30:00 | DP2: 2018-07-24T08:45:00
A3: ORDEN W2600 | B3: ORDEN ERP | C3: HR | D3: CODIGO | E3: HARINA | F3: GRANO | G3: % | H3: Mz | I3: Tm | J3: PR | K3: S1 | L3: G1 | M3: S2 | N3: G2 | O3: S3 | P3: G3 | Q3: RECYCLAGE | R3: M/C o C/S | S3: SUPPLEMENTADO | T3: HORA COMIENZO | U3: DURACION | V3: RETRASO | W3: HORA FIN PREVISTA | X3: HORA DE FIN VERDADERA | Y3: 1 | Z3: 2 | AA3: 3 | AB3: 4 | AC3: 5 | AD3: 6 | AE3: 7 | AF3: 8 | AG3: 9 | AH3: 10 | AI3: 11 | AJ3: 12 | AK3: 13 | AL3: 14 | AM3: 15 | AN3: 16 | AO3: 17 | AP3: 18 | AQ3: 19 | AR3: 20 | AS3: 21 | AT3: 22 | AU3: 23 | AV3: 24 | AW3: 25 | AX3: 26 | AY3: 27 | AZ3: 28 | BA3: 29 | BB3: 30 | BC3: 31 | BD3: 32 | BE3: 33 | BF3: 34 | BG3: 35 | BH3: 36 | BI3: 37 | BJ3: 38 | BK3: 39 | BL3: 40 | BM3: 41 | BN3: 42 | BO3: 43 | BP3: 44 | BQ3: 45 | BR3: 46 | BS3: 47 | BT3: 48 | BU3: 49 | BV3: 50 | BW3: 51 | BX3: 52 | BY3: 53 | BZ3: 54 | CA3: 55 | CB3: 56 | CC3: 57 | CD3: 58 | CE3: 59 | CF3: 60 | CG3: 61 | CH3: 62 | CI3: 63 | CJ3: 64 | CK3: 65 | CL3: 66 | CM3: 67 | CN3: 68 | CO3: 69 | CP3: 70 | CQ3: 71 | CR3: 72 | CS3: 73 | CT3: 74 | CU3: 75 | CV3: 76 | CW3: 77 | CX3: 78 | CY3: 79 | CZ3: 80 | DA3: 81 | DB3: 82 | DC3: 83 | DD3: 84 | DE3: 85 | DF3: 86 | DG3: 87 | DH3: 88 | DI3: 89 | DJ3: 90 | DK3: 91 | DL3: 92 | DM3: 93 | DN3: 94 | DO3: 95 | DP3: 96
G4: =IF(I4<>"",INDEX(Tb_mezcla!$A$1:$A$8,MIN(IF(Tb_mezcla!$B$3:$M$8=I4,ROW(Tb_mezcla!$B$3:$M$8)))),"") ->  | H4: =IF(I4<>"",INDEX(Tb_mezcla!$A$1:$M$1,MIN(IF(Tb_mezcla!$B$3:$M$8=I4,COLUMN(Tb_mezcla!$B$3:$M$8)))),"") ->  | W4: =IF(T4<>"",T4+U4,"") ->  | X4: =IF(T4<>"",T4+U4+V4,"") ->  | Y4: =IF($T4<>"",IF(AND(Y$2>=$T4,Y$2<$X4),IF(AND(Y$2>=$T4,Y$2<$W4),1,2),0),"") ->  | AI4: =IF($T4<>"",IF(AND(AI$2>=$T4,AI$2<$X4),IF(AND(AI$2>=$T4,AI$2<$W4),1,2),0),"") ->  | AS4: =IF($T4<>"",IF(AND(AS$2>=$T4,AS$2<$X4),IF(AND(AS$2>=$T4,AS$2<$W4),1,2),0),"") ->  | BC4: =IF($T4<>"",IF(AND(BC$2>=$T4,BC$2<$X4),IF(AND(BC$2>=$T4,BC$2<$W4),1,2),0),"") ->  | BM4: =IF($T4<>"",IF(AND(BM$2>=$T4,BM$2<$X4),IF(AND(BM$2>=$T4,BM$2<$W4),1,2),0),"") ->  | BW4: =IF($T4<>"",IF(AND(BW$2>=$T4,BW$2<$X4),IF(AND(BW$2>=$T4,BW$2<$W4),1,2),0),"") ->  | CG4: =IF($T4<>"",IF(AND(CG$2>=$T4,CG$2<$X4),IF(AND(CG$2>=$T4,CG$2<$W4),1,2),0),"") ->  | CQ4: =IF($T4<>"",IF(AND(CQ$2>=$T4,CQ$2<$X4),IF(AND(CQ$2>=$T4,CQ$2<$W4),1,2),0),"") ->  | DA4: =IF($T4<>"",IF(AND(DA$2>=$T4,DA$2<$X4),IF(AND(DA$2>=$T4,DA$2<$W4),1,2),0),"") ->  | DK4: =IF($T4<>"",IF(AND(DK$2>=$T4,DK$2<$X4),IF(AND(DK$2>=$T4,DK$2<$W4),1,2),0),"") -> 

Sheet Ensacado
A2: =Produccion!R1 -> 2018-07-23 | C2: =NomUtilisateur() -> serine_a
A3: TURNO | B3: ORDEN | C3: OP | D3: PESO | E3: PRODUCTO | F3: TIPO | G3: PALETS | H3: SILO | I3: SACOS ALMACEN | J3: KG RECUPERAR | K3: ENVASES ROTOS | L3: Observaciones

Sheet Silos
C4: 1S | F4: 2S | I4: 3S | L4: 4S | O4: 5S | R4: 6S | U4: 7S | X4: 8S | AA4: 9S
C11: FALSE | F11: FALSE | I11: FALSE | L11: FALSE | O11: FALSE | R11: FALSE | U11: FALSE | X11: FALSE | AA11: FALSE
B12: =IFERROR(IF(INDEX(Produccion!E4:L4,MATCH(C4,Produccion!K4:K4,0),1)<>" ",INDEX(Produccion!E4:L4,MATCH(C4,Produccion!K4:K4,0),1),INDEX(Produccion!E4:L4,MATCH(C4,Produccion!K4:K4,0),2)),"") ->  | E12: =IFERROR(IF(INDEX(Produccion!E4:L4,MATCH(F4,Produccion!K4:K4,0),1)<>" ",INDEX(Produccion!E4:L4,MATCH(F4,Produccion!K4:K4,0),1),INDEX(Produccion!E4:L4,MATCH(F4,Produccion!K4:K4,0),2)),"") ->  | H12: =IFERROR(IF(INDEX(Produccion!E4:L4,MATCH(I4,Produccion!K4:K4,0),1)<>" ",INDEX(Produccion!E4:L4,MATCH(I4,Produccion!K4:K4,0),1),INDEX(Produccion!E4:L4,MATCH(I4,Produccion!K4:K4,0),2)),"") ->  | K12: =IFERROR(IF(INDEX(Produccion!E4:L4,MATCH(L4,Produccion!K4:K4,0),1)<>" ",INDEX(Produccion!E4:L4,MATCH(L4,Produccion!K4:K4,0),1),INDEX(Produccion!E4:L4,MATCH(L4,Produccion!K4:K4,0),2)),"") ->  | N12: =IFERROR(IF(INDEX(Produccion!E4:L4,MATCH(O4,Produccion!K4:K4,0),1)<>" ",INDEX(Produccion!E4:L4,MATCH(O4,Produccion!K4:K4,0),1),INDEX(Produccion!E4:L4,MATCH(O4,Produccion!K4:K4,0),2)),"") ->  | Q12: =IFERROR(IF(INDEX(Produccion!E4:L4,MATCH(R4,Produccion!K4:K4,0),1)<>" ",INDEX(Produccion!E4:L4,MATCH(R4,Produccion!K4:K4,0),1),INDEX(Produccion!E4:L4,MATCH(R4,Produccion!K4:K4,0),2)),"") ->  | T12: =IFERROR(IF(INDEX(Produccion!E4:L4,MATCH(U4,Produccion!K4:K4,0),1)<>" ",INDEX(Produccion!E4:L4,MATCH(U4,Produccion!K4:K4,0),1),INDEX(Produccion!E4:L4,MATCH(U4,Produccion!K4:K4,0),2)),"") ->  | W12: =IFERROR(IF(INDEX(Produccion!E4:L4,MATCH(X4,Produccion!K4:K4,0),1)<>" ",INDEX(Produccion!E4:L4,MATCH(X4,Produccion!K4:K4,0),1),INDEX(Produccion!E4:L4,MATCH(X4,Produccion!K4:K4,0),2)),"") ->  | Z12: =IFERROR(IF(INDEX(Produccion!E4:L4,MATCH(AA4,Produccion!K4:K4,0),1)<>" ",INDEX(Produccion!E4:L4,MATCH(AA4,Produccion!K4:K4,0),1),INDEX(Produccion!E4:L4,MATCH(AA4,Produccion!K4:K4,0),2)),"") -> 
B15: =IFERROR(INDEX(Produccion!E4:L4,MATCH(C4,Produccion!K4:K4,0),5)&" Tm","") ->  | E15: =IFERROR(INDEX(Produccion!E4:L4,MATCH(F4,Produccion!K4:K4,0),5)&" Tm","") ->  | H15: =IFERROR(INDEX(Produccion!E4:L4,MATCH(I4,Produccion!K4:K4,0),5)&" Tm","") ->  | K15: =IFERROR(INDEX(Produccion!E4:L4,MATCH(L4,Produccion!K4:K4,0),5)&" Tm","") ->  | N15: =IFERROR(INDEX(Produccion!E4:L4,MATCH(O4,Produccion!K4:K4,0),5)&" Tm","") ->  | Q15: =IFERROR(INDEX(Produccion!E4:L4,MATCH(R4,Produccion!K4:K4,0),5)&" Tm","") ->  | T15: =IFERROR(INDEX(Produccion!E4:L4,MATCH(U4,Produccion!K4:K4,0),5)&" Tm","") ->  | W15: =IFERROR(INDEX(Produccion!E4:L4,MATCH(X4,Produccion!K4:K4,0),5)&" Tm","") ->  | Z15: =IFERROR(INDEX(Produccion!E4:L4,MATCH(AA4,Produccion!K4:K4,0),5)&" Tm","") -> 
C20: 1G | F20: 2G | I20: 3G | L20: 4G | O20: 5G | R20: 6G | U20: 7G | X20: 8G | AA20: 9G
C27: FALSE | F27: FALSE | I27: FALSE | L27: FALSE | O27: FALSE | R27: FALSE | U27: FALSE | X27: FALSE | AA27: FALSE
B28: =IFERROR(IF(INDEX(Produccion!E4:L4,MATCH(C20,Produccion!L4:L4,0),1)<>" ",INDEX(Produccion!E4:L4,MATCH(C20,Produccion!L4:L4,0),1),INDEX(Produccion!E4:L4,MATCH(C20,Produccion!L4:L4,0),2)),"") ->  | E28: =IFERROR(IF(INDEX(Produccion!E4:L4,MATCH(F20,Produccion!L4:L4,0),1)<>" ",INDEX(Produccion!E4:L4,MATCH(F20,Produccion!L4:L4,0),1),INDEX(Produccion!E4:L4,MATCH(F20,Produccion!L4:L4,0),2)),"") ->  | H28: =IFERROR(IF(INDEX(Produccion!E4:L4,MATCH(I20,Produccion!L4:L4,0),1)<>" ",INDEX(Produccion!E4:L4,MATCH(I20,Produccion!L4:L4,0),1),INDEX(Produccion!E4:L4,MATCH(I20,Produccion!L4:L4,0),2)),"") ->  | K28: =IFERROR(IF(INDEX(Produccion!E4:L4,MATCH(L20,Produccion!L4:L4,0),1)<>" ",INDEX(Produccion!E4:L4,MATCH(L20,Produccion!L4:L4,0),1),INDEX(Produccion!E4:L4,MATCH(L20,Produccion!L4:L4,0),2)),"") ->  | N28: =IFERROR(IF(INDEX(Produccion!E4:L4,MATCH(O20,Produccion!L4:L4,0),1)<>" ",INDEX(Produccion!E4:L4,MATCH(O20,Produccion!L4:L4,0),1),INDEX(Produccion!E4:L4,MATCH(O20,Produccion!L4:L4,0),2)),"") ->  | Q28: =IFERROR(IF(INDEX(Produccion!E4:L4,MATCH(R20,Produccion!L4:L4,0),1)<>" ",INDEX(Produccion!E4:L4,MATCH(R20,Produccion!L4:L4,0),1),INDEX(Produccion!E4:L4,MATCH(R20,Produccion!L4:L4,0),2)),"") ->  | T28: =IFERROR(IF(INDEX(Produccion!E4:L4,MATCH(U20,Produccion!L4:L4,0),1)<>" ",INDEX(Produccion!E4:L4,MATCH(U20,Produccion!L4:L4,0),1),INDEX(Produccion!E4:L4,MATCH(U20,Produccion!L4:L4,0),2)),"") ->  | W28: =IFERROR(IF(INDEX(Produccion!E4:L4,MATCH(X20,Produccion!L4:L4,0),1)<>" ",INDEX(Produccion!E4:L4,MATCH(X20,Produccion!L4:L4,0),1),INDEX(Produccion!E4:L4,MATCH(X20,Produccion!L4:L4,0),2)),"") ->  | Z28: =IFERROR(IF(INDEX(Produccion!E4:L4,MATCH(AA20,Produccion!L4:L4,0),1)<>" ",INDEX(Produccion!E4:L4,MATCH(AA20,Produccion!L4:L4,0),1),INDEX(Produccion!E4:L4,MATCH(AA20,Produccion!L4:L4,0),2)),"") -> 
B31: =IFERROR(INDEX(Produccion!E4:L4,MATCH(C20,Produccion!L4:L4,0),5)&" Tm","") ->  | E31: =IFERROR(INDEX(Produccion!E4:L4,MATCH(F20,Produccion!L4:L4,0),5)&" Tm","") ->  | H31: =IFERROR(INDEX(Produccion!E4:L4,MATCH(I20,Produccion!L4:L4,0),5)&" Tm","") ->  | K31: =IFERROR(INDEX(Produccion!E4:L4,MATCH(L20,Produccion!L4:L4,0),5)&" Tm","") ->  | N31: =IFERROR(INDEX(Produccion!E4:L4,MATCH(O20,Produccion!L4:L4,0),5)&" Tm","") ->  | Q31: =IFERROR(INDEX(Produccion!E4:L4,MATCH(R20,Produccion!L4:L4,0),5)&" Tm","") ->  | T31: =IFERROR(INDEX(Produccion!E4:L4,MATCH(U20,Produccion!L4:L4,0),5)&" Tm","") ->  | W31: =IFERROR(INDEX(Produccion!E4:L4,MATCH(X20,Produccion!L4:L4,0),5)&" Tm","") ->  | Z31: =IFERROR(INDEX(Produccion!E4:L4,MATCH(AA20,Produccion!L4:L4,0),5)&" Tm","") -> 
C33: 10G | F33: 11G | I33: 12G | L33: 13G | O33: 14G | R33: 15G | U33: 16G | X33: 17G | AA33: 18G
C40: FALSE | F40: FALSE | I40: FALSE | L40: FALSE | O40: FALSE | R40: FALSE | U40: FALSE | X40: FALSE | AA40: FALSE
B41: =IFERROR(IF(INDEX(Produccion!E4:L4,MATCH(C33,Produccion!L4:L4,0),1)<>" ",INDEX(Produccion!E4:L4,MATCH(C33,Produccion!L4:L4,0),1),INDEX(Produccion!E4:L4,MATCH(C33,Produccion!L4:L4,0),2)),"") ->  | E41: =IFERROR(IF(INDEX(Produccion!E4:L4,MATCH(F33,Produccion!L4:L4,0),1)<>" ",INDEX(Produccion!E4:L4,MATCH(F33,Produccion!L4:L4,0),1),INDEX(Produccion!E4:L4,MATCH(F33,Produccion!L4:L4,0),2)),"") ->  | H41: =IFERROR(IF(INDEX(Produccion!E4:L4,MATCH(I33,Produccion!L4:L4,0),1)<>" ",INDEX(Produccion!E4:L4,MATCH(I33,Produccion!L4:L4,0),1),INDEX(Produccion!E4:L4,MATCH(I33,Produccion!L4:L4,0),2)),"") ->  | K41: =IFERROR(IF(INDEX(Produccion!E4:L4,MATCH(L33,Produccion!L4:L4,0),1)<>" ",INDEX(Produccion!E4:L4,MATCH(L33,Produccion!L4:L4,0),1),INDEX(Produccion!E4:L4,MATCH(L33,Produccion!L4:L4,0),2)),"") ->  | N41: =IFERROR(IF(INDEX(Produccion!E4:L4,MATCH(O33,Produccion!L4:L4,0),1)<>" ",INDEX(Produccion!E4:L4,MATCH(O33,Produccion!L4:L4,0),1),INDEX(Produccion!E4:L4,MATCH(O33,Produccion!L4:L4,0),2)),"") ->  | Q41: =IFERROR(IF(INDEX(Produccion!E4:L4,MATCH(R33,Produccion!L4:L4,0),1)<>" ",INDEX(Produccion!E4:L4,MATCH(R33,Produccion!L4:L4,0),1),INDEX(Produccion!E4:L4,MATCH(R33,Produccion!L4:L4,0),2)),"") ->  | T41: =IFERROR(IF(INDEX(Produccion!E4:L4,MATCH(U33,Produccion!L4:L4,0),1)<>" ",INDEX(Produccion!E4:L4,MATCH(U33,Produccion!L4:L4,0),1),INDEX(Produccion!E4:L4,MATCH(U33,Produccion!L4:L4,0),2)),"") ->  | W41: =IFERROR(IF(INDEX(Produccion!E4:L4,MATCH(X33,Produccion!L4:L4,0),1)<>" ",INDEX(Produccion!E4:L4,MATCH(X33,Produccion!L4:L4,0),1),INDEX(Produccion!E4:L4,MATCH(X33,Produccion!L4:L4,0),2)),"") ->  | Z41: =IFERROR(IF(INDEX(Produccion!E4:L4,MATCH(AA33,Produccion!L4:L4,0),1)<>" ",INDEX(Produccion!E4:L4,MATCH(AA33,Produccion!L4:L4,0),1),INDEX(Produccion!E4:L4,MATCH(AA33,Produccion!L4:L4,0),2)),"") -> 
B44: =IFERROR(INDEX(Produccion!E4:L4,MATCH(C33,Produccion!L4:L4,0),5)&" Tm","") ->  | E44: =IFERROR(INDEX(Produccion!E4:L4,MATCH(F33,Produccion!L4:L4,0),5)&" Tm","") ->  | H44: =IFERROR(INDEX(Produccion!E4:L4,MATCH(I33,Produccion!L4:L4,0),5)&" Tm","") ->  | K44: =IFERROR(INDEX(Produccion!E4:L4,MATCH(L33,Produccion!L4:L4,0),5)&" Tm","") ->  | N44: =IFERROR(INDEX(Produccion!E4:L4,MATCH(O33,Produccion!L4:L4,0),5)&" Tm","") ->  | Q44: =IFERROR(INDEX(Produccion!E4:L4,MATCH(R33,Produccion!L4:L4,0),5)&" Tm","") ->  | T44: =IFERROR(INDEX(Produccion!E4:L4,MATCH(U33,Produccion!L4:L4,0),5)&" Tm","") ->  | W44: =IFERROR(INDEX(Produccion!E4:L4,MATCH(X33,Produccion!L4:L4,0),5)&" Tm","") ->  | Z44: =IFERROR(INDEX(Produccion!E4:L4,MATCH(AA33,Produccion!L4:L4,0),5)&" Tm","") -> 
C46: 19G | F46: 20G | I46: 21G | L46: 22G | O46: 23G | R46: 24G
C53: FALSE | F53: FALSE | I53: FALSE | L53: FALSE | O53: FALSE | R53: FALSE
B54: =IFERROR(IF(INDEX(Produccion!E4:L4,MATCH(C46,Produccion!L4:L4,0),1)<>" ",INDEX(Produccion!E4:L4,MATCH(C46,Produccion!L4:L4,0),1),INDEX(Produccion!E4:L4,MATCH(C46,Produccion!L4:L4,0),2)),"") ->  | E54: =IFERROR(IF(INDEX(Produccion!E4:L4,MATCH(F46,Produccion!L4:L4,0),1)<>" ",INDEX(Produccion!E4:L4,MATCH(F46,Produccion!L4:L4,0),1),INDEX(Produccion!E4:L4,MATCH(F46,Produccion!L4:L4,0),2)),"") ->  | H54: =IFERROR(IF(INDEX(Produccion!E4:L4,MATCH(I46,Produccion!L4:L4,0),1)<>" ",INDEX(Produccion!E4:L4,MATCH(I46,Produccion!L4:L4,0),1),INDEX(Produccion!E4:L4,MATCH(I46,Produccion!L4:L4,0),2)),"") ->  | K54: =IFERROR(IF(INDEX(Produccion!E4:L4,MATCH(L46,Produccion!L4:L4,0),1)<>" ",INDEX(Produccion!E4:L4,MATCH(L46,Produccion!L4:L4,0),1),INDEX(Produccion!E4:L4,MATCH(L46,Produccion!L4:L4,0),2)),"") ->  | N54: =IFERROR(IF(INDEX(Produccion!E4:L4,MATCH(O46,Produccion!L4:L4,0),1)<>" ",INDEX(Produccion!E4:L4,MATCH(O46,Produccion!L4:L4,0),1),INDEX(Produccion!E4:L4,MATCH(O46,Produccion!L4:L4,0),2)),"") ->  | Q54: =IFERROR(IF(INDEX(Produccion!E4:L4,MATCH(R46,Produccion!L4:L4,0),1)<>" ",INDEX(Produccion!E4:L4,MATCH(R46,Produccion!L4:L4,0),1),INDEX(Produccion!E4:L4,MATCH(R46,Produccion!L4:L4,0),2)),"") -> 
B57: =IFERROR(INDEX(Produccion!E4:L4,MATCH(C46,Produccion!L4:L4,0),5)&" Tm","") ->  | E57: =IFERROR(INDEX(Produccion!E4:L4,MATCH(F46,Produccion!L4:L4,0),5)&" Tm","") ->  | H57: =IFERROR(INDEX(Produccion!E4:L4,MATCH(I46,Produccion!L4:L4,0),5)&" Tm","") ->  | K57: =IFERROR(INDEX(Produccion!E4:L4,MATCH(L46,Produccion!L4:L4,0),5)&" Tm","") ->  | N57: =IFERROR(INDEX(Produccion!E4:L4,MATCH(O46,Produccion!L4:L4,0),5)&" Tm","") ->  | Q57: =IFERROR(INDEX(Produccion!E4:L4,MATCH(R46,Produccion!L4:L4,0),5)&" Tm","") -> 

Sheet Nueva

Sheet NuevaEns

Sheet Nueva_Nec

Sheet Tb_mezcla
B1: 1 | C1: 2 | D1: 3 | E1: 4 | F1: 5 | G1: 6 | H1: 7 | I1: 8 | J1: 9 | K1: 10 | L1: 11 | M1: 12
A2: % de mezcla | B2: Tm
A3: 0.03 | B3: 0.09
A4: 0.35 | B4: 1.05
A5: 0.7 | B5: 2.1 | C5: =B5*$C$1 -> 4.2 | D5: =B5*$D$1 -> 6.3 | E5: =B5*$E$1 -> 8.4 | F5: =B5*$F$1 -> 10.5 | G5: =B5*$G$1 -> 12.6 | H5: =B5*$H$1 -> 14.7 | L5: =B5*$L$1 -> 23.1 | M5: =B5*$M$1 -> 25.2
A6: 0.8 | B6: 2.4 | C6: =B6*$C$1 -> 4.8 | D6: =B6*$D$1 -> 7.2 | E6: =B6*4 -> 9.6 | G6: =B6*$G$1 -> 14.4 | H6: =B6*$H$1 -> 16.8 | I6: =B6*$I$1 -> 19.2 | L6: =B6*$L$1 -> 26.4 | M6: =B6*$M$1 -> 28.8
A7: 0.9 | B7: 2.7 | C7: =B7*$C$1 -> 5.4 | D7: =B7*$D$1 -> 8.1 | E7: =B7*4 -> 10.8 | F7: =B7*$F$1 -> 13.5 | G7: =B7*$G$1 -> 16.2 | H7: =B7*$H$1 -> 18.9 | I7: =B7*$I$1 -> 21.6 | J7: =B7*$J$1 -> 24.3 | L7: =B7*$L$1 -> 29.7 | M7: =B7*$M$1 -> 32.4
A8: 1 | B8: 3 | C8: =B8*$C$1 -> 6 | D8: =B8*$D$1 -> 9 | E8: =B8*4 -> 12 | F8: =B8*$F$1 -> 15 | G8: =B8*$G$1 -> 18 | H8: =B8*$H$1 -> 21 | I8: =B8*$I$1 -> 24 | J8: =B8*$J$1 -> 27 | K8: =B8*$K$1 -> 30 | L8: =B8*$L$1 -> 33 | M8: =B8*$M$1 -> 36

Sheet Tb_mezcla2
B1: 1 | C1: 2 | D1: 3 | E1: 4 | F1: 5 | G1: 6 | H1: 7 | I1: 8 | J1: 9 | K1: 10 | L1: 11 | M1: 12
A2: % de mezcla | B2: Tm
A3: 0.35 | B3: 1050
A4: 0.7 | B4: 2100 | C4: =B4*$C$1 -> 4200 | D4: =B4*$D$1 -> 6300 | E4: =B4*$E$1 -> 8400 | F4: =B4*$F$1 -> 10500 | G4: =B4*$G$1 -> 12600 | H4: =B4*$H$1 -> 14700 | L4: =B4*$L$1 -> 23100 | M4: =B4*$M$1 -> 25200
A5: 0.8 | B5: 2400 | C5: =B5*$C$1 -> 4800 | D5: =B5*$D$1 -> 7200 | E5: =B5*4 -> 9600 | G5: =B5*$G$1 -> 14400 | H5: =B5*$H$1 -> 16800 | I5: =B5*$I$1 -> 19200 | L5: =B5*$L$1 -> 26400 | M5: =B5*$M$1 -> 28800
A6: 0.9 | B6: 2700 | C6: =B6*$C$1 -> 5400 | D6: =B6*$D$1 -> 8100 | E6: =B6*4 -> 10800 | F6: =B6*$F$1 -> 13500 | G6: =B6*$G$1 -> 16200 | H6: =B6*$H$1 -> 18900 | I6: =B6*$I$1 -> 21600 | J6: =B6*$J$1 -> 24300 | L6: =B6*$L$1 -> 29700 | M6: =B6*$M$1 -> 32400
A7: 1 | B7: 3000 | C7: =B7*$C$1 -> 6000 | D7: =B7*$D$1 -> 9000 | E7: =B7*4 -> 12000 | F7: =B7*$F$1 -> 15000 | G7: =B7*$G$1 -> 18000 | H7: =B7*$H$1 -> 21000 | I7: =B7*$I$1 -> 24000 | J7: =B7*$J$1 -> 27000 | K7: =B7*$K$1 -> 30000 | L7: =B7*$L$1 -> 33000 | M7: =B7*$M$1 -> 36000

Sheet Datos
A1: PR | C1: Silos_Sacos | E1: Silos_Granel | G1: M/C o C/S | I1: Silos_2y3_Sacos | J1: Silos_2y3_Granel | L1: Num_Orden | M1: Lista evolutiva | O1: Horas | Q1: Liste_Onglets | S1: Date | T1: Horas_Gantt_1h | U1: Horas_Gantt | V1: Horas_Gantt_30 | W1: Escala_tempo | Y1: Horas_Comienzo | Z1: Turno
A2: 1 | C2: =IF(Silos!C11=FALSE,"1S","") -> 1S | E2: =IF(Silos!C$27=FALSE,"1G","") -> 1G | G2: M/C | I2: 1S | J2: 1G | L2: 1 | M2: =IF(ROWS($1:1)<=COUNTA(Num_Orden)-COUNTA(Produccion!$A$4:$A$4),INDEX(Num_Orden,SMALL(IF((COUNTIF(Produccion!$A$4:$A$4,Num_Orden)=0),ROW(INDIRECT("1:"&ROWS(Num_Orden)))),ROWS($1:1))),"") -> 1 | O2: 05:00:00 | S2: =TODAY()-4 -> 2018-07-20 | T2: 01:00:00 | U2: 00:15:00 | V2: 00:30:00 | W2: 00:15:00 | Y2: =IF(Produccion!$T$1+Produccion!$R$1>=Produccion!$R$2,"",Produccion!$T$1+Produccion!$R$1) -> 2018-07-23T09:00:00 | Z2: A
A3: 2 | C3: =IF(Silos!F11=FALSE,"2S","") -> 2S | E3: =IF(Silos!F$27=FALSE,"2G","") -> 2G | G3: C/S | I3: 2S | J3: 2G | L3: 2 | M3: =IF(ROWS($1:2)<=COUNTA(Num_Orden)-COUNTA(Produccion!$A$4:$A$4),INDEX(Num_Orden,SMALL(IF((COUNTIF(Produccion!$A$4:$A$4,Num_Orden)=0),ROW(INDIRECT("1:"&ROWS(Num_Orden)))),ROWS($1:2))),"") -> 2 | O3: 06:00:00 | S3: =TODAY()-3 -> 2018-07-21 | T3: 02:00:00 | U3: 00:30:00 | V3: 01:00:00 | W3: 00:30:00 | Y3: =IF(Y2<>"",IF(Y2+Produccion!$T$2>=Produccion!$R$2+Produccion!$T$1,"",Y2+Produccion!$T$2),"") -> 2018-07-23T09:15:00 | Z3: B
C4: =IF(Silos!I11=FALSE,"3S","") -> 3S | E4: =IF(Silos!I$27=FALSE,"3G","") -> 3G | I4: 3S | J4: 3G | L4: 3 | M4: =IF(ROWS($1:3)<=COUNTA(Num_Orden)-COUNTA(Produccion!$A$4:$A$4),INDEX(Num_Orden,SMALL(IF((COUNTIF(Produccion!$A$4:$A$4,Num_Orden)=0),ROW(INDIRECT("1:"&ROWS(Num_Orden)))),ROWS($1:3))),"") -> 3 | O4: 07:00:00 | S4: =TODAY()-2 -> 2018-07-22 | T4: 03:00:00 | U4: 00:45:00 | V4: 01:30:00 | W4: 01:00:00 | Y4: =IF(Y3<>"",IF(Y3+Produccion!$T$2>=Produccion!$R$2+Produccion!$T$1,"",Y3+Produccion!$T$2),"") -> 2018-07-23T09:30:00 | Z4: C
C5: =IF(Silos!L11=FALSE,"4S","") -> 4S | E5: =IF(Silos!L$27=FALSE,"4G","") -> 4G | I5: 4S | J5: 4G | L5: 4 | M5: =IF(ROWS($1:4)<=COUNTA(Num_Orden)-COUNTA(Produccion!$A$4:$A$4),INDEX(Num_Orden,SMALL(IF((COUNTIF(Produccion!$A$4:$A$4,Num_Orden)=0),ROW(INDIRECT("1:"&ROWS(Num_Orden)))),ROWS($1:4))),"") -> 4 | O5: 08:00:00 | S5: =TODAY()-1 -> 2018-07-23 | T5: 04:00:00 | U5: 01:00:00 | V5: 02:00:00 | Y5: =IF(Y4<>"",IF(Y4+Produccion!$T$2>=Produccion!$R$2+Produccion!$T$1,"",Y4+Produccion!$T$2),"") -> 2018-07-23T09:45:00
C6: =IF(Silos!O11=FALSE,"5S","") -> 5S | E6: =IF(Silos!O$27=FALSE,"5G","") -> 5G | I6: 5S | J6: 5G | L6: 5 | M6: =IF(ROWS($1:5)<=COUNTA(Num_Orden)-COUNTA(Produccion!$A$4:$A$4),INDEX(Num_Orden,SMALL(IF((COUNTIF(Produccion!$A$4:$A$4,Num_Orden)=0),ROW(INDIRECT("1:"&ROWS(Num_Orden)))),ROWS($1:5))),"") -> 5 | O6: 09:00:00 | S6: =TODAY() -> 2018-07-24 | T6: 05:00:00 | U6: 01:15:00 | V6: 02:30:00 | Y6: =IF(Y5<>"",IF(Y5+Produccion!$T$2>=Produccion!$R$2+Produccion!$T$1,"",Y5+Produccion!$T$2),"") -> 2018-07-23T10:00:00
C7: =IF(Silos!R11=FALSE,"6S","") -> 6S | E7: =IF(Silos!R$27=FALSE,"6G","") -> 6G | I7: 6S | J7: 6G | L7: 6 | M7: =IF(ROWS($1:6)<=COUNTA(Num_Orden)-COUNTA(Produccion!$A$4:$A$4),INDEX(Num_Orden,SMALL(IF((COUNTIF(Produccion!$A$4:$A$4,Num_Orden)=0),ROW(INDIRECT("1:"&ROWS(Num_Orden)))),ROWS($1:6))),"") -> 6 | O7: 10:00:00 | S7: =TODAY()+1 -> 2018-07-25 | T7: 06:00:00 | U7: 01:30:00 | V7: 03:00:00 | Y7: =IF(Y6<>"",IF(Y6+Produccion!$T$2>=Produccion!$R$2+Produccion!$T$1,"",Y6+Produccion!$T$2),"") -> 2018-07-23T10:15:00
C8: =IF(Silos!U11=FALSE,"7S","") -> 7S | E8: =IF(Silos!U$27=FALSE,"7G","") -> 7G | I8: 7S | J8: 7G | L8: 7 | M8: =IF(ROWS($1:7)<=COUNTA(Num_Orden)-COUNTA(Produccion!$A$4:$A$4),INDEX(Num_Orden,SMALL(IF((COUNTIF(Produccion!$A$4:$A$4,Num_Orden)=0),ROW(INDIRECT("1:"&ROWS(Num_Orden)))),ROWS($1:7))),"") -> 7 | O8: 11:00:00 | S8: =TODAY()+2 -> 2018-07-26 | T8: 07:00:00 | U8: 01:45:00 | V8: 03:30:00 | Y8: =IF(Y7<>"",IF(Y7+Produccion!$T$2>=Produccion!$R$2+Produccion!$T$1,"",Y7+Produccion!$T$2),"") -> 2018-07-23T10:30:00
C9: =IF(Silos!X11=FALSE,"8S","") -> 8S | E9: =IF(Silos!X$27=FALSE,"8G","") -> 8G | I9: 8S | J9: 8G | L9: 8 | M9: =IF(ROWS($1:8)<=COUNTA(Num_Orden)-COUNTA(Produccion!$A$4:$A$4),INDEX(Num_Orden,SMALL(IF((COUNTIF(Produccion!$A$4:$A$4,Num_Orden)=0),ROW(INDIRECT("1:"&ROWS(Num_Orden)))),ROWS($1:8))),"") -> 8 | O9: 12:00:00 | S9: =TODAY()+3 -> 2018-07-27 | T9: 08:00:00 | U9: 02:00:00 | V9: 04:00:00 | Y9: =IF(Y8<>"",IF(Y8+Produccion!$T$2>=Produccion!$R$2+Produccion!$T$1,"",Y8+Produccion!$T$2),"") -> 2018-07-23T10:45:00
C10: =IF(Silos!AA11=FALSE,"9S","") -> 9S | E10: =IF(Silos!AA$27=FALSE,"9G","") -> 9G | I10: 9S | J10: 9G | L10: 9 | M10: =IF(ROWS($1:9)<=COUNTA(Num_Orden)-COUNTA(Produccion!$A$4:$A$4),INDEX(Num_Orden,SMALL(IF((COUNTIF(Produccion!$A$4:$A$4,Num_Orden)=0),ROW(INDIRECT("1:"&ROWS(Num_Orden)))),ROWS($1:9))),"") -> 9 | O10: 13:00:00 | S10: =TODAY()+4 -> 2018-07-28 | T10: 09:00:00 | U10: 02:15:00 | V10: 04:30:00 | Y10: =IF(Y9<>"",IF(Y9+Produccion!$T$2>=Produccion!$R$2+Produccion!$T$1,"",Y9+Produccion!$T$2),"") -> 2018-07-23T11:00:00
E11: =IF(Silos!C$40=FALSE,"10G","") -> 10G | J11: 10G | L11: 10 | M11: =IF(ROWS($1:10)<=COUNTA(Num_Orden)-COUNTA(Produccion!$A$4:$A$4),INDEX(Num_Orden,SMALL(IF((COUNTIF(Produccion!$A$4:$A$4,Num_Orden)=0),ROW(INDIRECT("1:"&ROWS(Num_Orden)))),ROWS($1:10))),"") -> 10 | O11: 14:00:00 | T11: 10:00:00 | U11: 02:30:00 | V11: 05:00:00 | Y11: =IF(Y10<>"",IF(Y10+Produccion!$T$2>=Produccion!$R$2+Produccion!$T$1,"",Y10+Produccion!$T$2),"") -> 2018-07-23T11:15:00
E12: =IF(Silos!F$40=FALSE,"11G","") -> 11G | J12: 11G | L12: 11 | M12: =IF(ROWS($1:11)<=COUNTA(Num_Orden)-COUNTA(Produccion!$A$4:$A$4),INDEX(Num_Orden,SMALL(IF((COUNTIF(Produccion!$A$4:$A$4,Num_Orden)=0),ROW(INDIRECT("1:"&ROWS(Num_Orden)))),ROWS($1:11))),"") -> 11 | O12: 15:00:00 | T12: 11:00:00 | U12: 02:45:00 | V12: 05:30:00 | Y12: =IF(Y11<>"",IF(Y11+Produccion!$T$2>=Produccion!$R$2+Produccion!$T$1,"",Y11+Produccion!$T$2),"") -> 2018-07-23T11:30:00
E13: =IF(Silos!I$40=FALSE,"12G","") -> 12G | J13: 12G | L13: 12 | M13: =IF(ROWS($1:12)<=COUNTA(Num_Orden)-COUNTA(Produccion!$A$4:$A$4),INDEX(Num_Orden,SMALL(IF((COUNTIF(Produccion!$A$4:$A$4,Num_Orden)=0),ROW(INDIRECT("1:"&ROWS(Num_Orden)))),ROWS($1:12))),"") -> 12 | O13: 16:00:00 | T13: 12:00:00 | U13: 03:00:00 | V13: 06:00:00 | Y13: =IF(Y12<>"",IF(Y12+Produccion!$T$2>=Produccion!$R$2+Produccion!$T$1,"",Y12+Produccion!$T$2),"") -> 2018-07-23T11:45:00
E14: =IF(Silos!L$40=FALSE,"13G","") -> 13G | J14: 13G | L14: 13 | M14: =IF(ROWS($1:13)<=COUNTA(Num_Orden)-COUNTA(Produccion!$A$4:$A$4),INDEX(Num_Orden,SMALL(IF((COUNTIF(Produccion!$A$4:$A$4,Num_Orden)=0),ROW(INDIRECT("1:"&ROWS(Num_Orden)))),ROWS($1:13))),"") -> 13 | O14: 17:00:00 | T14: 13:00:00 | U14: 03:15:00 | V14: 06:30:00 | Y14: =IF(Y13<>"",IF(Y13+Produccion!$T$2>=Produccion!$R$2+Produccion!$T$1,"",Y13+Produccion!$T$2),"") -> 2018-07-23T12:00:00
E15: =IF(Silos!O$40=FALSE,"14G","") -> 14G | J15: 14G | L15: 14 | M15: =IF(ROWS($1:14)<=COUNTA(Num_Orden)-COUNTA(Produccion!$A$4:$A$4),INDEX(Num_Orden,SMALL(IF((COUNTIF(Produccion!$A$4:$A$4,Num_Orden)=0),ROW(INDIRECT("1:"&ROWS(Num_Orden)))),ROWS($1:14))),"") -> 14 | O15: 18:00:00 | T15: 14:00:00 | U15: 03:30:00 | V15: 07:00:00 | Y15: =IF(Y14<>"",IF(Y14+Produccion!$T$2>=Produccion!$R$2+Produccion!$T$1,"",Y14+Produccion!$T$2),"") -> 2018-07-23T12:15:00
E16: =IF(Silos!R$40=FALSE,"15G","") -> 15G | J16: 15G | L16: 15 | M16: =IF(ROWS($1:15)<=COUNTA(Num_Orden)-COUNTA(Produccion!$A$4:$A$4),INDEX(Num_Orden,SMALL(IF((COUNTIF(Produccion!$A$4:$A$4,Num_Orden)=0),ROW(INDIRECT("1:"&ROWS(Num_Orden)))),ROWS($1:15))),"") -> 15 | O16: 19:00:00 | T16: 15:00:00 | U16: 03:45:00 | V16: 07:30:00 | Y16: =IF(Y15<>"",IF(Y15+Produccion!$T$2>=Produccion!$R$2+Produccion!$T$1,"",Y15+Produccion!$T$2),"") -> 2018-07-23T12:30:00
E17: =IF(Silos!U$40=FALSE,"16G","") -> 16G | J17: 16G | L17: 16 | M17: =IF(ROWS($1:16)<=COUNTA(Num_Orden)-COUNTA(Produccion!$A$4:$A$4),INDEX(Num_Orden,SMALL(IF((COUNTIF(Produccion!$A$4:$A$4,Num_Orden)=0),ROW(INDIRECT("1:"&ROWS(Num_Orden)))),ROWS($1:16))),"") -> 16 | O17: 20:00:00 | T17: 16:00:00 | U17: 04:00:00 | V17: 08:00:00 | Y17: =IF(Y16<>"",IF(Y16+Produccion!$T$2>=Produccion!$R$2+Produccion!$T$1,"",Y16+Produccion!$T$2),"") -> 2018-07-23T12:45:00
E18: =IF(Silos!X$40=FALSE,"17G","") -> 17G | J18: 17G | L18: 17 | M18: =IF(ROWS($1:17)<=COUNTA(Num_Orden)-COUNTA(Produccion!$A$4:$A$4),INDEX(Num_Orden,SMALL(IF((COUNTIF(Produccion!$A$4:$A$4,Num_Orden)=0),ROW(INDIRECT("1:"&ROWS(Num_Orden)))),ROWS($1:17))),"") -> 17 | O18: 21:00:00 | T18: 17:00:00 | U18: 04:15:00 | V18: 08:30:00 | Y18: =IF(Y17<>"",IF(Y17+Produccion!$T$2>=Produccion!$R$2+Produccion!$T$1,"",Y17+Produccion!$T$2),"") -> 2018-07-23T13:00:00
E19: =IF(Silos!AA$40=FALSE,"18G","") -> 18G | J19: 18G | L19: 18 | M19: =IF(ROWS($1:18)<=COUNTA(Num_Orden)-COUNTA(Produccion!$A$4:$A$4),INDEX(Num_Orden,SMALL(IF((COUNTIF(Produccion!$A$4:$A$4,Num_Orden)=0),ROW(INDIRECT("1:"&ROWS(Num_Orden)))),ROWS($1:18))),"") -> 18 | O19: 22:00:00 | T19: 18:00:00 | U19: 04:30:00 | V19: 09:00:00 | Y19: =IF(Y18<>"",IF(Y18+Produccion!$T$2>=Produccion!$R$2+Produccion!$T$1,"",Y18+Produccion!$T$2),"") -> 2018-07-23T13:15:00
E20: =IF(Silos!C$53=FALSE,"19G","") -> 19G | J20: 19G | L20: 19 | M20: =IF(ROWS($1:19)<=COUNTA(Num_Orden)-COUNTA(Produccion!$A$4:$A$4),INDEX(Num_Orden,SMALL(IF((COUNTIF(Produccion!$A$4:$A$4,Num_Orden)=0),ROW(INDIRECT("1:"&ROWS(Num_Orden)))),ROWS($1:19))),"") -> 19 | O20: 23:00:00 | T20: 19:00:00 | U20: 04:45:00 | V20: 09:30:00 | Y20: =IF(Y19<>"",IF(Y19+Produccion!$T$2>=Produccion!$R$2+Produccion!$T$1,"",Y19+Produccion!$T$2),"") -> 2018-07-23T13:30:00
E21: =IF(Silos!F$53=FALSE,"20G","") -> 20G | J21: 20G | L21: 20 | M21: =IF(ROWS($1:20)<=COUNTA(Num_Orden)-COUNTA(Produccion!$A$4:$A$4),INDEX(Num_Orden,SMALL(IF((COUNTIF(Produccion!$A$4:$A$4,Num_Orden)=0),ROW(INDIRECT("1:"&ROWS(Num_Orden)))),ROWS($1:20))),"") -> 20 | O21: 1 | T21: 20:00:00 | U21: 05:00:00 | V21: 10:00:00 | Y21: =IF(Y20<>"",IF(Y20+Produccion!$T$2>=Produccion!$R$2+Produccion!$T$1,"",Y20+Produccion!$T$2),"") -> 2018-07-23T13:45:00
E22: =IF(Silos!I$53=FALSE,"21G","") -> 21G | J22: 21G | L22: 21 | M22: =IF(ROWS($1:21)<=COUNTA(Num_Orden)-COUNTA(Produccion!$A$4:$A$4),INDEX(Num_Orden,SMALL(IF((COUNTIF(Produccion!$A$4:$A$4,Num_Orden)=0),ROW(INDIRECT("1:"&ROWS(Num_Orden)))),ROWS($1:21))),"") -> 21 | T22: 21:00:00 | U22: 05:15:00 | V22: 10:30:00 | Y22: =IF(Y21<>"",IF(Y21+Produccion!$T$2>=Produccion!$R$2+Produccion!$T$1,"",Y21+Produccion!$T$2),"") -> 2018-07-23T14:00:00
E23: =IF(Silos!L$53=FALSE,"22G","") -> 22G | J23: 22G | L23: 22 | M23: =IF(ROWS($1:22)<=COUNTA(Num_Orden)-COUNTA(Produccion!$A$4:$A$4),INDEX(Num_Orden,SMALL(IF((COUNTIF(Produccion!$A$4:$A$4,Num_Orden)=0),ROW(INDIRECT("1:"&ROWS(Num_Orden)))),ROWS($1:22))),"") -> 22 | T23: 22:00:00 | U23: 05:30:00 | V23: 11:00:00 | Y23: =IF(Y22<>"",IF(Y22+Produccion!$T$2>=Produccion!$R$2+Produccion!$T$1,"",Y22+Produccion!$T$2),"") -> 2018-07-23T14:15:00
E24: =IF(Silos!O$53=FALSE,"23G","") -> 23G | J24: 23G | L24: 23 | M24: =IF(ROWS($1:23)<=COUNTA(Num_Orden)-COUNTA(Produccion!$A$4:$A$4),INDEX(Num_Orden,SMALL(IF((COUNTIF(Produccion!$A$4:$A$4,Num_Orden)=0),ROW(INDIRECT("1:"&ROWS(Num_Orden)))),ROWS($1:23))),"") -> 23 | T24: 23:00:00 | U24: 05:45:00 | V24: 11:30:00 | Y24: =IF(Y23<>"",IF(Y23+Produccion!$T$2>=Produccion!$R$2+Produccion!$T$1,"",Y23+Produccion!$T$2),"") -> 2018-07-23T14:30:00
E25: =IF(Silos!R$53=FALSE,"24G","") -> 24G | J25: 24G | L25: 24 | M25: =IF(ROWS($1:24)<=COUNTA(Num_Orden)-COUNTA(Produccion!$A$4:$A$4),INDEX(Num_Orden,SMALL(IF((COUNTIF(Produccion!$A$4:$A$4,Num_Orden)=0),ROW(INDIRECT("1:"&ROWS(Num_Orden)))),ROWS($1:24))),"") -> 24 | T25: 1 | U25: 06:00:00 | V25: 12:00:00 | Y25: =IF(Y24<>"",IF(Y24+Produccion!$T$2>=Produccion!$R$2+Produccion!$T$1,"",Y24+Produccion!$T$2),"") -> 2018-07-23T14:45:00
L26: 25 | M26: =IF(ROWS($1:25)<=COUNTA(Num_Orden)-COUNTA(Produccion!$A$4:$A$4),INDEX(Num_Orden,SMALL(IF((COUNTIF(Produccion!$A$4:$A$4,Num_Orden)=0),ROW(INDIRECT("1:"&ROWS(Num_Orden)))),ROWS($1:25))),"") -> 25 | U26: 06:15:00 | V26: 12:30:00 | Y26: =IF(Y25<>"",IF(Y25+Produccion!$T$2>=Produccion!$R$2+Produccion!$T$1,"",Y25+Produccion!$T$2),"") -> 2018-07-23T15:00:00
L27: 26 | M27: =IF(ROWS($1:26)<=COUNTA(Num_Orden)-COUNTA(Produccion!$A$4:$A$4),INDEX(Num_Orden,SMALL(IF((COUNTIF(Produccion!$A$4:$A$4,Num_Orden)=0),ROW(INDIRECT("1:"&ROWS(Num_Orden)))),ROWS($1:26))),"") -> 26 | U27: 06:30:00 | V27: 13:00:00 | Y27: =IF(Y26<>"",IF(Y26+Produccion!$T$2>=Produccion!$R$2+Produccion!$T$1,"",Y26+Produccion!$T$2),"") -> 2018-07-23T15:15:00
L28: 27 | M28: =IF(ROWS($1:27)<=COUNTA(Num_Orden)-COUNTA(Produccion!$A$4:$A$4),INDEX(Num_Orden,SMALL(IF((COUNTIF(Produccion!$A$4:$A$4,Num_Orden)=0),ROW(INDIRECT("1:"&ROWS(Num_Orden)))),ROWS($1:27))),"") -> 27 | U28: 06:45:00 | V28: 13:30:00 | Y28: =IF(Y27<>"",IF(Y27+Produccion!$T$2>=Produccion!$R$2+Produccion!$T$1,"",Y27+Produccion!$T$2),"") -> 2018-07-23T15:30:00
L29: 28 | M29: =IF(ROWS($1:28)<=COUNTA(Num_Orden)-COUNTA(Produccion!$A$4:$A$4),INDEX(Num_Orden,SMALL(IF((COUNTIF(Produccion!$A$4:$A$4,Num_Orden)=0),ROW(INDIRECT("1:"&ROWS(Num_Orden)))),ROWS($1:28))),"") -> 28 | U29: 07:00:00 | V29: 14:00:00 | Y29: =IF(Y28<>"",IF(Y28+Produccion!$T$2>=Produccion!$R$2+Produccion!$T$1,"",Y28+Produccion!$T$2),"") -> 2018-07-23T15:45:00
L30: 29 | M30: =IF(ROWS($1:29)<=COUNTA(Num_Orden)-COUNTA(Produccion!$A$4:$A$4),INDEX(Num_Orden,SMALL(IF((COUNTIF(Produccion!$A$4:$A$4,Num_Orden)=0),ROW(INDIRECT("1:"&ROWS(Num_Orden)))),ROWS($1:29))),"") -> 29 | U30: 07:15:00 | V30: 14:30:00 | Y30: =IF(Y29<>"",IF(Y29+Produccion!$T$2>=Produccion!$R$2+Produccion!$T$1,"",Y29+Produccion!$T$2),"") -> 2018-07-23T16:00:00
L31: 30 | M31: =IF(ROWS($1:30)<=COUNTA(Num_Orden)-COUNTA(Produccion!$A$4:$A$4),INDEX(Num_Orden,SMALL(IF((COUNTIF(Produccion!$A$4:$A$4,Num_Orden)=0),ROW(INDIRECT("1:"&ROWS(Num_Orden)))),ROWS($1:30))),"") -> 30 | U31: 07:30:00 | V31: 15:00:00 | Y31: =IF(Y30<>"",IF(Y30+Produccion!$T$2>=Produccion!$R$2+Produccion!$T$1,"",Y30+Produccion!$T$2),"") -> 2018-07-23T16:15:00
L32: 31 | M32: =IF(ROWS($1:31)<=COUNTA(Num_Orden)-COUNTA(Produccion!$A$4:$A$4),INDEX(Num_Orden,SMALL(IF((COUNTIF(Produccion!$A$4:$A$4,Num_Orden)=0),ROW(INDIRECT("1:"&ROWS(Num_Orden)))),ROWS($1:31))),"") -> 31 | U32: 07:45:00 | V32: 15:30:00 | Y32: =IF(Y31<>"",IF(Y31+Produccion!$T$2>=Produccion!$R$2+Produccion!$T$1,"",Y31+Produccion!$T$2),"") -> 2018-07-23T16:30:00
L33: 32 | M33: =IF(ROWS($1:32)<=COUNTA(Num_Orden)-COUNTA(Produccion!$A$4:$A$4),INDEX(Num_Orden,SMALL(IF((COUNTIF(Produccion!$A$4:$A$4,Num_Orden)=0),ROW(INDIRECT("1:"&ROWS(Num_Orden)))),ROWS($1:32))),"") -> 32 | U33: 08:00:00 | V33: 16:00:00 | Y33: =IF(Y32<>"",IF(Y32+Produccion!$T$2>=Produccion!$R$2+Produccion!$T$1,"",Y32+Produccion!$T$2),"") -> 2018-07-23T16:45:00
L34: 33 | M34: =IF(ROWS($1:33)<=COUNTA(Num_Orden)-COUNTA(Produccion!$A$4:$A$4),INDEX(Num_Orden,SMALL(IF((COUNTIF(Produccion!$A$4:$A$4,Num_Orden)=0),ROW(INDIRECT("1:"&ROWS(Num_Orden)))),ROWS($1:33))),"") -> 33 | U34: 08:15:00 | V34: 16:30:00 | Y34: =IF(Y33<>"",IF(Y33+Produccion!$T$2>=Produccion!$R$2+Produccion!$T$1,"",Y33+Produccion!$T$2),"") -> 2018-07-23T17:00:00
L35: 34 | M35: =IF(ROWS($1:34)<=COUNTA(Num_Orden)-COUNTA(Produccion!$A$4:$A$4),INDEX(Num_Orden,SMALL(IF((COUNTIF(Produccion!$A$4:$A$4,Num_Orden)=0),ROW(INDIRECT("1:"&ROWS(Num_Orden)))),ROWS($1:34))),"") -> 34 | U35: 08:30:00 | V35: 17:00:00 | Y35: =IF(Y34<>"",IF(Y34+Produccion!$T$2>=Produccion!$R$2+Produccion!$T$1,"",Y34+Produccion!$T$2),"") -> 2018-07-23T17:15:00
L36: 35 | M36: =IF(ROWS($1:35)<=COUNTA(Num_Orden)-COUNTA(Produccion!$A$4:$A$4),INDEX(Num_Orden,SMALL(IF((COUNTIF(Produccion!$A$4:$A$4,Num_Orden)=0),ROW(INDIRECT("1:"&ROWS(Num_Orden)))),ROWS($1:35))),"") -> 35 | U36: 08:45:00 | V36: 17:30:00 | Y36: =IF(Y35<>"",IF(Y35+Produccion!$T$2>=Produccion!$R$2+Produccion!$T$1,"",Y35+Produccion!$T$2),"") -> 2018-07-23T17:30:00
L37: 36 | M37: =IF(ROWS($1:36)<=COUNTA(Num_Orden)-COUNTA(Produccion!$A$4:$A$4),INDEX(Num_Orden,SMALL(IF((COUNTIF(Produccion!$A$4:$A$4,Num_Orden)=0),ROW(INDIRECT("1:"&ROWS(Num_Orden)))),ROWS($1:36))),"") -> 36 | U37: 09:00:00 | V37: 18:00:00 | Y37: =IF(Y36<>"",IF(Y36+Produccion!$T$2>=Produccion!$R$2+Produccion!$T$1,"",Y36+Produccion!$T$2),"") -> 2018-07-23T17:45:00
L38: 37 | M38: =IF(ROWS($1:37)<=COUNTA(Num_Orden)-COUNTA(Produccion!$A$4:$A$4),INDEX(Num_Orden,SMALL(IF((COUNTIF(Produccion!$A$4:$A$4,Num_Orden)=0),ROW(INDIRECT("1:"&ROWS(Num_Orden)))),ROWS($1:37))),"") -> 37 | U38: 09:15:00 | V38: 18:30:00 | Y38: =IF(Y37<>"",IF(Y37+Produccion!$T$2>=Produccion!$R$2+Produccion!$T$1,"",Y37+Produccion!$T$2),"") -> 2018-07-23T18:00:00
L39: 38 | M39: =IF(ROWS($1:38)<=COUNTA(Num_Orden)-COUNTA(Produccion!$A$4:$A$4),INDEX(Num_Orden,SMALL(IF((COUNTIF(Produccion!$A$4:$A$4,Num_Orden)=0),ROW(INDIRECT("1:"&ROWS(Num_Orden)))),ROWS($1:38))),"") -> 38 | U39: 09:30:00 | V39: 19:00:00 | Y39: =IF(Y38<>"",IF(Y38+Produccion!$T$2>=Produccion!$R$2+Produccion!$T$1,"",Y38+Produccion!$T$2),"") -> 2018-07-23T18:15:00
L40: 39 | M40: =IF(ROWS($1:39)<=COUNTA(Num_Orden)-COUNTA(Produccion!$A$4:$A$4),INDEX(Num_Orden,SMALL(IF((COUNTIF(Produccion!$A$4:$A$4,Num_Orden)=0),ROW(INDIRECT("1:"&ROWS(Num_Orden)))),ROWS($1:39))),"") -> 39 | U40: 09:45:00 | V40: 19:30:00 | Y40: =IF(Y39<>"",IF(Y39+Produccion!$T$2>=Produccion!$R$2+Produccion!$T$1,"",Y39+Produccion!$T$2),"") -> 2018-07-23T18:30:00
L41: 40 | M41: =IF(ROWS($1:40)<=COUNTA(Num_Orden)-COUNTA(Produccion!$A$4:$A$4),INDEX(Num_Orden,SMALL(IF((COUNTIF(Produccion!$A$4:$A$4,Num_Orden)=0),ROW(INDIRECT("1:"&ROWS(Num_Orden)))),ROWS($1:40))),"") -> 40 | U41: 10:00:00 | V41: 20:00:00 | Y41: =IF(Y40<>"",IF(Y40+Produccion!$T$2>=Produccion!$R$2+Produccion!$T$1,"",Y40+Produccion!$T$2),"") -> 2018-07-23T18:45:00
L42: 41 | M42: =IF(ROWS($1:41)<=COUNTA(Num_Orden)-COUNTA(Produccion!$A$4:$A$4),INDEX(Num_Orden,SMALL(IF((COUNTIF(Produccion!$A$4:$A$4,Num_Orden)=0),ROW(INDIRECT("1:"&ROWS(Num_Orden)))),ROWS($1:41))),"") -> 41 | U42: 10:15:00 | V42: 20:30:00 | Y42: =IF(Y41<>"",IF(Y41+Produccion!$T$2>=Produccion!$R$2+Produccion!$T$1,"",Y41+Produccion!$T$2),"") -> 2018-07-23T19:00:00
L43: 42 | M43: =IF(ROWS($1:42)<=COUNTA(Num_Orden)-COUNTA(Produccion!$A$4:$A$4),INDEX(Num_Orden,SMALL(IF((COUNTIF(Produccion!$A$4:$A$4,Num_Orden)=0),ROW(INDIRECT("1:"&ROWS(Num_Orden)))),ROWS($1:42))),"") -> 42 | U43: 10:30:00 | V43: 21:00:00 | Y43: =IF(Y42<>"",IF(Y42+Produccion!$T$2>=Produccion!$R$2+Produccion!$T$1,"",Y42+Produccion!$T$2),"") -> 2018-07-23T19:15:00
L44: 43 | M44: =IF(ROWS($1:43)<=COUNTA(Num_Orden)-COUNTA(Produccion!$A$4:$A$4),INDEX(Num_Orden,SMALL(IF((COUNTIF(Produccion!$A$4:$A$4,Num_Orden)=0),ROW(INDIRECT("1:"&ROWS(Num_Orden)))),ROWS($1:43))),"") -> 43 | U44: 10:45:00 | V44: 21:30:00 | Y44: =IF(Y43<>"",IF(Y43+Produccion!$T$2>=Produccion!$R$2+Produccion!$T$1,"",Y43+Produccion!$T$2),"") -> 2018-07-23T19:30:00
L45: 44 | M45: =IF(ROWS($1:44)<=COUNTA(Num_Orden)-COUNTA(Produccion!$A$4:$A$4),INDEX(Num_Orden,SMALL(IF((COUNTIF(Produccion!$A$4:$A$4,Num_Orden)=0),ROW(INDIRECT("1:"&ROWS(Num_Orden)))),ROWS($1:44))),"") -> 44 | U45: 11:00:00 | V45: 22:00:00 | Y45: =IF(Y44<>"",IF(Y44+Produccion!$T$2>=Produccion!$R$2+Produccion!$T$1,"",Y44+Produccion!$T$2),"") -> 2018-07-23T19:45:00
L46: 45 | M46: =IF(ROWS($1:45)<=COUNTA(Num_Orden)-COUNTA(Produccion!$A$4:$A$4),INDEX(Num_Orden,SMALL(IF((COUNTIF(Produccion!$A$4:$A$4,Num_Orden)=0),ROW(INDIRECT("1:"&ROWS(Num_Orden)))),ROWS($1:45))),"") -> 45 | U46: 11:15:00 | V46: 22:30:00 | Y46: =IF(Y45<>"",IF(Y45+Produccion!$T$2>=Produccion!$R$2+Produccion!$T$1,"",Y45+Produccion!$T$2),"") -> 2018-07-23T20:00:00
L47: 46 | M47: =IF(ROWS($1:46)<=COUNTA(Num_Orden)-COUNTA(Produccion!$A$4:$A$4),INDEX(Num_Orden,SMALL(IF((COUNTIF(Produccion!$A$4:$A$4,Num_Orden)=0),ROW(INDIRECT("1:"&ROWS(Num_Orden)))),ROWS($1:46))),"") -> 46 | U47: 11:30:00 | V47: 23:00:00 | Y47: =IF(Y46<>"",IF(Y46+Produccion!$T$2>=Produccion!$R$2+Produccion!$T$1,"",Y46+Produccion!$T$2),"") -> 2018-07-23T20:15:00
L48: 47 | M48: =IF(ROWS($1:47)<=COUNTA(Num_Orden)-COUNTA(Produccion!$A$4:$A$4),INDEX(Num_Orden,SMALL(IF((COUNTIF(Produccion!$A$4:$A$4,Num_Orden)=0),ROW(INDIRECT("1:"&ROWS(Num_Orden)))),ROWS($1:47))),"") -> 47 | U48: 11:45:00 | V48: 23:30:00 | Y48: =IF(Y47<>"",IF(Y47+Produccion!$T$2>=Produccion!$R$2+Produccion!$T$1,"",Y47+Produccion!$T$2),"") -> 2018-07-23T20:30:00
L49: 48 | M49: =IF(ROWS($1:48)<=COUNTA(Num_Orden)-COUNTA(Produccion!$A$4:$A$4),INDEX(Num_Orden,SMALL(IF((COUNTIF(Produccion!$A$4:$A$4,Num_Orden)=0),ROW(INDIRECT("1:"&ROWS(Num_Orden)))),ROWS($1:48))),"") -> 48 | U49: 12:00:00 | V49: 1 | Y49: =IF(Y48<>"",IF(Y48+Produccion!$T$2>=Produccion!$R$2+Produccion!$T$1,"",Y48+Produccion!$T$2),"") -> 2018-07-23T20:45:00
L50: 49 | M50: =IF(ROWS($1:49)<=COUNTA(Num_Orden)-COUNTA(Produccion!$A$4:$A$4),INDEX(Num_Orden,SMALL(IF((COUNTIF(Produccion!$A$4:$A$4,Num_Orden)=0),ROW(INDIRECT("1:"&ROWS(Num_Orden)))),ROWS($1:49))),"") -> 49 | U50: 12:15:00 | Y50: =IF(Y49<>"",IF(Y49+Produccion!$T$2>=Produccion!$R$2+Produccion!$T$1,"",Y49+Produccion!$T$2),"") -> 2018-07-23T21:00:00
L51: 50 | M51: =IF(ROWS($1:50)<=COUNTA(Num_Orden)-COUNTA(Produccion!$A$4:$A$4),INDEX(Num_Orden,SMALL(IF((COUNTIF(Produccion!$A$4:$A$4,Num_Orden)=0),ROW(INDIRECT("1:"&ROWS(Num_Orden)))),ROWS($1:50))),"") -> 50 | U51: 12:30:00 | Y51: =IF(Y50<>"",IF(Y50+Produccion!$T$2>=Produccion!$R$2+Produccion!$T$1,"",Y50+Produccion!$T$2),"") -> 2018-07-23T21:15:00
U52: 12:45:00 | Y52: =IF(Y51<>"",IF(Y51+Produccion!$T$2>=Produccion!$R$2+Produccion!$T$1,"",Y51+Produccion!$T$2),"") -> 2018-07-23T21:30:00
U53: 13:00:00 | Y53: =IF(Y52<>"",IF(Y52+Produccion!$T$2>=Produccion!$R$2+Produccion!$T$1,"",Y52+Produccion!$T$2),"") -> 2018-07-23T21:45:00
U54: 13:15:00 | Y54: =IF(Y53<>"",IF(Y53+Produccion!$T$2>=Produccion!$R$2+Produccion!$T$1,"",Y53+Produccion!$T$2),"") -> 2018-07-23T22:00:00
U55: 13:30:00 | Y55: =IF(Y54<>"",IF(Y54+Produccion!$T$2>=Produccion!$R$2+Produccion!$T$1,"",Y54+Produccion!$T$2),"") -> 2018-07-23T22:15:00
U56: 13:45:00 | Y56: =IF(Y55<>"",IF(Y55+Produccion!$T$2>=Produccion!$R$2+Produccion!$T$1,"",Y55+Produccion!$T$2),"") -> 2018-07-23T22:30:00
U57: 14:00:00 | Y57: =IF(Y56<>"",IF(Y56+Produccion!$T$2>=Produccion!$R$2+Produccion!$T$1,"",Y56+Produccion!$T$2),"") -> 2018-07-23T22:45:00
U58: 14:15:00 | Y58: =IF(Y57<>"",IF(Y57+Produccion!$T$2>=Produccion!$R$2+Produccion!$T$1,"",Y57+Produccion!$T$2),"") -> 2018-07-23T23:00:00
U59: 14:30:00 | Y59: =IF(Y58<>"",IF(Y58+Produccion!$T$2>=Produccion!$R$2+Produccion!$T$1,"",Y58+Produccion!$T$2),"") -> 2018-07-23T23:15:00
U60: 14:45:00 | Y60: =IF(Y59<>"",IF(Y59+Produccion!$T$2>=Produccion!$R$2+Produccion!$T$1,"",Y59+Produccion!$T$2),"") -> 2018-07-23T23:30:00
U61: 15:00:00 | Y61: =IF(Y60<>"",IF(Y60+Produccion!$T$2>=Produccion!$R$2+Produccion!$T$1,"",Y60+Produccion!$T$2),"") -> 2018-07-23T23:45:00
U62: 15:15:00 | Y62: =IF(Y61<>"",IF(Y61+Produccion!$T$2>=Produccion!$R$2+Produccion!$T$1,"",Y61+Produccion!$T$2),"") -> 2018-07-24
U63: 15:30:00 | Y63: =IF(Y62<>"",IF(Y62+Produccion!$T$2>=Produccion!$R$2+Produccion!$T$1,"",Y62+Produccion!$T$2),"") -> 2018-07-24T00:15:00
U64: 15:45:00 | Y64: =IF(Y63<>"",IF(Y63+Produccion!$T$2>=Produccion!$R$2+Produccion!$T$1,"",Y63+Produccion!$T$2),"") -> 2018-07-24T00:30:00
U65: 16:00:00 | Y65: =IF(Y64<>"",IF(Y64+Produccion!$T$2>=Produccion!$R$2+Produccion!$T$1,"",Y64+Produccion!$T$2),"") -> 2018-07-24T00:45:00
U66: 16:15:00 | Y66: =IF(Y65<>"",IF(Y65+Produccion!$T$2>=Produccion!$R$2+Produccion!$T$1,"",Y65+Produccion!$T$2),"") -> 2018-07-24T01:00:00
U67: 16:30:00 | Y67: =IF(Y66<>"",IF(Y66+Produccion!$T$2>=Produccion!$R$2+Produccion!$T$1,"",Y66+Produccion!$T$2),"") -> 2018-07-24T01:15:00
U68: 16:45:00 | Y68: =IF(Y67<>"",IF(Y67+Produccion!$T$2>=Produccion!$R$2+Produccion!$T$1,"",Y67+Produccion!$T$2),"") -> 2018-07-24T01:30:00
U69: 17:00:00 | Y69: =IF(Y68<>"",IF(Y68+Produccion!$T$2>=Produccion!$R$2+Produccion!$T$1,"",Y68+Produccion!$T$2),"") -> 2018-07-24T01:45:00
U70: 17:15:00 | Y70: =IF(Y69<>"",IF(Y69+Produccion!$T$2>=Produccion!$R$2+Produccion!$T$1,"",Y69+Produccion!$T$2),"") -> 2018-07-24T02:00:00
U71: 17:30:00 | Y71: =IF(Y70<>"",IF(Y70+Produccion!$T$2>=Produccion!$R$2+Produccion!$T$1,"",Y70+Produccion!$T$2),"") -> 2018-07-24T02:15:00
U72: 17:45:00 | Y72: =IF(Y71<>"",IF(Y71+Produccion!$T$2>=Produccion!$R$2+Produccion!$T$1,"",Y71+Produccion!$T$2),"") -> 2018-07-24T02:30:00
U73: 18:00:00 | Y73: =IF(Y72<>"",IF(Y72+Produccion!$T$2>=Produccion!$R$2+Produccion!$T$1,"",Y72+Produccion!$T$2),"") -> 2018-07-24T02:45:00
U74: 18:15:00 | Y74: =IF(Y73<>"",IF(Y73+Produccion!$T$2>=Produccion!$R$2+Produccion!$T$1,"",Y73+Produccion!$T$2),"") -> 2018-07-24T03:00:00
U75: 18:30:00 | Y75: =IF(Y74<>"",IF(Y74+Produccion!$T$2>=Produccion!$R$2+Produccion!$T$1,"",Y74+Produccion!$T$2),"") -> 2018-07-24T03:15:00
U76: 18:45:00 | Y76: =IF(Y75<>"",IF(Y75+Produccion!$T$2>=Produccion!$R$2+Produccion!$T$1,"",Y75+Produccion!$T$2),"") -> 2018-07-24T03:30:00
U77: 19:00:00 | Y77: =IF(Y76<>"",IF(Y76+Produccion!$T$2>=Produccion!$R$2+Produccion!$T$1,"",Y76+Produccion!$T$2),"") -> 2018-07-24T03:45:00
U78: 19:15:00 | Y78: =IF(Y77<>"",IF(Y77+Produccion!$T$2>=Produccion!$R$2+Produccion!$T$1,"",Y77+Produccion!$T$2),"") -> 2018-07-24T04:00:00
U79: 19:30:00 | Y79: =IF(Y78<>"",IF(Y78+Produccion!$T$2>=Produccion!$R$2+Produccion!$T$1,"",Y78+Produccion!$T$2),"") -> 2018-07-24T04:15:00
U80: 19:45:00 | Y80: =IF(Y79<>"",IF(Y79+Produccion!$T$2>=Produccion!$R$2+Produccion!$T$1,"",Y79+Produccion!$T$2),"") -> 2018-07-24T04:30:00
U81: 20:00:00 | Y81: =IF(Y80<>"",IF(Y80+Produccion!$T$2>=Produccion!$R$2+Produccion!$T$1,"",Y80+Produccion!$T$2),"") -> 2018-07-24T04:45:00
U82: 20:15:00 | Y82: =IF(Y81<>"",IF(Y81+Produccion!$T$2>=Produccion!$R$2+Produccion!$T$1,"",Y81+Produccion!$T$2),"") -> 2018-07-24T05:00:00
U83: 20:30:00 | Y83: =IF(Y82<>"",IF(Y82+Produccion!$T$2>=Produccion!$R$2+Produccion!$T$1,"",Y82+Produccion!$T$2),"") -> 2018-07-24T05:15:00
U84: 20:45:00 | Y84: =IF(Y83<>"",IF(Y83+Produccion!$T$2>=Produccion!$R$2+Produccion!$T$1,"",Y83+Produccion!$T$2),"") -> 2018-07-24T05:30:00
U85: 21:00:00 | Y85: =IF(Y84<>"",IF(Y84+Produccion!$T$2>=Produccion!$R$2+Produccion!$T$1,"",Y84+Produccion!$T$2),"") -> 2018-07-24T05:45:00
U86: 21:15:00 | Y86: =IF(Y85<>"",IF(Y85+Produccion!$T$2>=Produccion!$R$2+Produccion!$T$1,"",Y85+Produccion!$T$2),"") -> 2018-07-24T06:00:00
U87: 21:30:00 | Y87: =IF(Y86<>"",IF(Y86+Produccion!$T$2>=Produccion!$R$2+Produccion!$T$1,"",Y86+Produccion!$T$2),"") -> 2018-07-24T06:15:00
U88: 21:45:00 | Y88: =IF(Y87<>"",IF(Y87+Produccion!$T$2>=Produccion!$R$2+Produccion!$T$1,"",Y87+Produccion!$T$2),"") -> 2018-07-24T06:30:00
U89: 22:00:00 | Y89: =IF(Y88<>"",IF(Y88+Produccion!$T$2>=Produccion!$R$2+Produccion!$T$1,"",Y88+Produccion!$T$2),"") -> 2018-07-24T06:45:00
U90: 22:15:00 | Y90: =IF(Y89<>"",IF(Y89+Produccion!$T$2>=Produccion!$R$2+Produccion!$T$1,"",Y89+Produccion!$T$2),"") -> 2018-07-24T07:00:00
U91: 22:30:00 | Y91: =IF(Y90<>"",IF(Y90+Produccion!$T$2>=Produccion!$R$2+Produccion!$T$1,"",Y90+Produccion!$T$2),"") -> 2018-07-24T07:15:00
U92: 22:45:00 | Y92: =IF(Y91<>"",IF(Y91+Produccion!$T$2>=Produccion!$R$2+Produccion!$T$1,"",Y91+Produccion!$T$2),"") -> 2018-07-24T07:30:00
U93: 23:00:00 | Y93: =IF(Y92<>"",IF(Y92+Produccion!$T$2>=Produccion!$R$2+Produccion!$T$1,"",Y92+Produccion!$T$2),"") -> 2018-07-24T07:45:00
U94: 23:15:00 | Y94: =IF(Y93<>"",IF(Y93+Produccion!$T$2>=Produccion!$R$2+Produccion!$T$1,"",Y93+Produccion!$T$2),"") -> 2018-07-24T08:00:00
U95: 23:30:00 | Y95: =IF(Y94<>"",IF(Y94+Produccion!$T$2>=Produccion!$R$2+Produccion!$T$1,"",Y94+Produccion!$T$2),"") -> 2018-07-24T08:15:00
U96: 23:45:00 | Y96: =IF(Y95<>"",IF(Y95+Produccion!$T$2>=Produccion!$R$2+Produccion!$T$1,"",Y95+Produccion!$T$2),"") -> 2018-07-24T08:30:00
Y97: =IF(Y96<>"",IF(Y96+Produccion!$T$2>=Produccion!$R$2+Produccion!$T$1,"",Y96+Produccion!$T$2),"") -> 2018-07-24T08:45:00
